fUSD/lending_fUSD_20250814
["ID","MTS","AMOUNT","RATE_DAILY","PERIOD"]
[379203721,1755185505087,-1551.63,0.00027671,2]
[379203722,1755185505096,-930.3,0.00027671,2]
[379203723,1755185505106,-1068.92,0.00027671,2]
[379203724,1755185505115,-400.0,0.00027671,2]
[379203725,1755185505125,-400.0,0.00027671,2]
[379203726,1755185505137,-1866.08,0.00027671,2]
[379203727,1755185505148,-3896.3,0.00027671,2]
[379203728,1755185505157,-2005.64,0.00027671,2]
[379203729,1755185505172,-3279.08,0.00027671,2]
[379203730,1755185505186,-400.0,0.00027671,2]
[379203731,1755185505196,-4281.06,0.00027671,2]
[379203732,1755185505206,-863.03,0.00027671,2]
[379203733,1755185505217,-400.0,0.00027671,2]
[379203734,1755185505228,-821.06,0.00027671,2]
[379203735,1755185505239,-475.82,0.00027671,2]
[379203736,1755185505248,-420.935082,0.00027671,7]
[379203737,1755185505258,-400.0,0.00027671,2]
[379203738,1755185505268,-400.0,0.00027671,2]
[379203739,1755185505278,-400.0,0.00027671,2]
[379203740,1755185505288,-405.92718379,0.00027671,2]
[379203741,1755185505297,-400.0,0.00027671,2]
[379203742,1755185505308,-2879.37,0.00027671,2]
[379203743,1755185505318,-3840.08,0.00027671,2]
[379203744,1755185505327,-507.85,0.00027671,2]
[379203745,1755185505337,-400.0,0.00027671,2]
[379203746,1755185505347,-400.0,0.00027671,2]
[379203747,1755185505356,-400.0,0.00027671,2]
[379203748,1755185505366,-400.0,0.00027671,2]
[379203749,1755185505376,-3303.45,0.00027671,2]
[379203750,1755185505386,-400.0,0.00027671,2]
[379203751,1755185505396,-400.0,0.00027671,2]
[379203752,1755185505406,-2957.91,0.00027671,2]
[379203753,1755185505417,-959.07,0.00027671,2]
[379203754,1755185505429,-1920.4,0.00027671,2]
[379203755,1755185505439,-1509.08,0.00027671,2]
[379203756,1755185505449,-400.0,0.00027671,2]
[379203757,1755185505459,-467.44,0.00027671,2]
[379203758,1755185505470,-884.35,0.00027671,2]
[379203759,1755185505480,-405.73368875,0.00027671,2]
[379203760,1755185505490,-400.0,0.00027671,2]
[379203761,1755185505500,-453.24,0.00027671,2]
[379203762,1755185505510,-2093.25,0.00027671,2]
[379203763,1755185505520,-405.1,0.00027671,2]
[379203764,1755185505530,-1526.68,0.00027671,2]
[379203765,1755185505540,-2633.16,0.00027671,2]
[379203766,1755185505550,-400.0,0.00027671,2]
[379203767,1755185505560,-400.0,0.00027671,2]
[379203768,1755185505569,-400.0,0.00027671,2]
[379203769,1755185505579,-400.0,0.00027671,2]
[379203770,1755185505588,-400.0,0.00027671,2]
[379203771,1755185505598,-987.67,0.00027671,2]
[379203772,1755185505607,-400.0,0.00027671,2]
[379203773,1755185505617,-421.01,0.00027671,2]
[379203774,1755185505626,-151.0,0.00027671,7]
[379203775,1755185505636,-2469.29,0.00027671,2]
[379203776,1755185505646,-2560.07,0.00027671,2]
[379203777,1755185505656,-400.0,0.00027671,2]
[379203778,1755185505664,-519.85,0.00027671,2]
[379203779,1755185505674,-5522.79,0.00027671,2]
[379203780,1755185505685,-561.64,0.00027671,2]
[379203781,1755185505695,-400.0,0.00027671,2]
[379203782,1755185505704,-1160.31,0.00027671,2]
[379203783,1755185505714,-400.0,0.00027671,2]
[379203784,1755185505724,-923.18,0.00027671,2]
[379203785,1755185505734,-1103.43,0.00027671,2]
[379203786,1755185505744,-1035.42,0.00027671,2]
[379203787,1755185505754,-1143.91,0.00027671,2]
[379203788,1755185505764,-588.77,0.00027671,2]
[379203789,1755185505774,-810.64,0.00027671,2]
[379203790,1755185505783,-2151.82,0.00027671,2]
[379203791,1755185505793,-400.0,0.00027671,2]
[379203792,1755185505802,-400.0,0.00027671,2]
[379203793,1755185505812,-400.0,0.00027671,2]
[379203794,1755185505822,-400.0,0.00027671,2]
[379203795,1755185505832,-983.93,0.00027671,2]
[379203796,1755185505843,-1272.060599,0.00027671,7]
[379203797,1755185505853,-1272.060599,0.00027671,7]
[379203798,1755185505863,-454.98,0.00027671,2]
[379203799,1755185505873,-400.0,0.00027671,2]
[379203800,1755185505883,-400.0,0.00027671,2]
[379203801,1755185505893,-961.43,0.00027671,2]
[379203802,1755185505902,-400.0,0.00027671,2]
[379203803,1755185505912,-1136.32,0.00027671,2]
[379203804,1755185505921,-400.0,0.00027671,2]
[379203805,1755185505933,-1442.32,0.00027671,2]
[379203806,1755185505942,-491.89,0.00027671,2]
[379203807,1755185505952,-400.0,0.00027671,2]
[379203808,1755185505962,-490.67,0.00027671,2]
[379203809,1755185505971,-1272.060599,0.00027671,7]
[379203810,1755185505980,-1272.060599,0.00027671,7]
[379203811,1755185505990,-2582.25,0.00027671,2]
[379203812,1755185506000,-4091.15,0.00027671,2]
[379203813,1755185506009,-400.0,0.00027671,2]
[379203814,1755185506019,-400.0,0.00027671,2]
[379203815,1755185506029,-2000.0,0.00027671,30]
[379203816,1755185506039,-633.47,0.00027671,2]
[379203817,1755185506048,-400.0,0.00027671,2]
[379203818,1755185506058,-2280.38,0.00027671,2]
[379203819,1755185506067,-400.0,0.00027671,2]
[379203820,1755185506077,-2565.32,0.00027671,2]
[379203821,1755185506087,-400.0,0.00027671,2]
[379203822,1755185506096,-261.11,0.00027671,2]
[379203823,1755185506106,-1456.26,0.00027671,2]
[379203824,1755185506115,-1408.08,0.00027671,2]
[379203825,1755185506125,-400.0,0.00027671,2]
[379203826,1755185506137,-400.0,0.00027671,2]
[379203827,1755185506147,-819.75,0.00027671,2]
[379203828,1755185506157,-400.0,0.00027671,2]
[379203829,1755185506166,-307.323367,0.00027671,7]
[379203830,1755185506177,-151.0,0.00027671,7]
[379203831,1755185506187,-307.323367,0.00027671,7]
[379203832,1755185506197,-151.0,0.00027671,7]
[379203833,1755185506207,-307.323367,0.00027671,7]
[379203834,1755185506217,-3485.71,0.00027671,2]
[379203835,1755185506227,-2981.53,0.00027671,2]
[379203836,1755185506237,-307.323367,0.00027671,7]
[379203837,1755185506247,-151.0,0.00027671,7]
[379203838,1755185506256,-307.323367,0.00027671,7]
[379203839,1755185506266,-151.0,0.00027671,7]
[379203840,1755185506275,-307.323367,0.00027671,7]
[379203841,1755185506285,-1179.18,0.00027671,2]
[379203842,1755185506295,-498.76,0.00027671,2]
[379203843,1755185506304,-400.0,0.00027671,2]
[379203844,1755185506313,-1973.49,0.00027671,2]
[379203845,1755185506323,-400.0,0.00027671,2]
[379203846,1755185506332,-1014.78,0.00027671,2]
[379203847,1755185506342,-463.89,0.00027671,2]
[379203848,1755185506352,-402.15,0.00027671,2]
[379203849,1755185506362,-396.71765,0.00027671,7]
[379203850,1755185506372,-396.71765,0.00027671,7]
[379203851,1755185506381,-400.0,0.00027671,2]
[379203852,1755185506391,-3832.87,0.00027671,2]
[379203853,1755185506401,-1947.68,0.00027671,2]
[379203854,1755185506411,-400.0,0.00027671,2]
[379203855,1755185506422,-5162.62,0.00027671,2]
[379203856,1755185506435,-4580.85,0.00027671,2]
[379203857,1755185506445,-220.28116367,0.00027671,2]
[379203858,1755185506454,-986.17,0.00027671,2]
[379203859,1755185506464,-396.71765,0.00027671,7]
[379203860,1755185506473,-396.717644,0.00027671,7]
[379203861,1755185506483,-2169.91,0.00027671,2]
[379203862,1755185506492,-400.0,0.00027671,2]
[379203863,1755185506502,-859.33,0.00027671,2]
[379203864,1755185506511,-400.0,0.00027671,2]
[379203865,1755185506523,-5110.1,0.00027671,2]
[379203866,1755185506534,-3758.15,0.00027671,2]
[379203867,1755185506544,-899.07,0.00027671,2]
[379203868,1755185506554,-400.0,0.00027671,2]
[379203869,1755185506563,-1942.8,0.00027671,2]
[379203870,1755185506573,-588.99,0.00027671,2]
[379203871,1755185506583,-400.0,0.00027671,2]
[379203872,1755185506592,-650.22,0.00027671,2]
[379203873,1755185506603,-400.0,0.00027671,2]
[379203874,1755185506614,-801.25,0.00027671,2]
[379203875,1755185506625,-2427.29,0.00027671,2]
[379203876,1755185506636,-400.0,0.00027671,2]
[379203877,1755185506645,-400.0,0.00027671,2]
[379203878,1755185506655,-2142.95,0.00027671,2]
[379203879,1755185506665,-1238.37,0.00027671,2]
[379203880,1755185506676,-400.0,0.00027671,2]
[379203881,1755185506685,-793.51,0.00027671,2]
[379203882,1755185506695,-1863.76,0.00027671,2]
[379203883,1755185506705,-674.59,0.00027671,2]
[379203884,1755185506714,-1125.57,0.00027671,2]
[379203885,1755185506723,-570.71,0.00027671,2]
[379203886,1755185506733,-1482.17,0.00027671,2]
[379203887,1755185506742,-1046.22,0.00027671,2]
[379203888,1755185506752,-400.0,0.00027671,2]
[379203889,1755185506761,-2505.57,0.00027671,2]
[379203890,1755185506771,-1827.21,0.00027671,2]
[379203891,1755185506780,-400.0,0.00027671,2]
[379203892,1755185506790,-2470.21,0.00027671,2]
[379203893,1755185506799,-1004.61,0.00027671,2]
[379203894,1755185506808,-400.0,0.00027671,2]
[379203895,1755185506818,-400.0,0.00027671,2]
[379203896,1755185506827,-400.0,0.00027671,2]
[379203897,1755185506837,-1166.99,0.00027671,2]
[379203898,1755185506847,-400.0,0.00027671,2]
[379203899,1755185506857,-647.3,0.00027671,2]
[379203900,1755185506866,-2554.54,0.00027671,2]
[379203901,1755185506875,-2602.07,0.00027671,2]
[379203902,1755185506885,-1043.08,0.00027671,2]
[379203903,1755185506895,-2714.34,0.00027671,2]
[379203904,1755185506904,-2292.32,0.00027671,2]
[379203905,1755185506914,-400.0,0.00027671,2]
[379203906,1755185506923,-1132.54,0.00027671,2]
[379203907,1755185506933,-914.15,0.00027671,2]
[379203908,1755185506942,-5115.09,0.00027671,2]
[379203909,1755185506952,-400.0,0.00027671,2]
[379203910,1755185506961,-1759.27,0.00027671,2]
[379203911,1755185506971,-2303.36,0.00027671,2]
[379203912,1755185506980,-541.2547653,0.00027671,2]
[379203913,1755185506990,-1318.86,0.00027671,2]
[379203914,1755185506999,-400.0,0.00027671,2]
[379203915,1755185507008,-400.0,0.00027671,2]
[379203916,1755185507017,-5107.76,0.00027671,2]
[379203917,1755185507027,-283.8055683,0.00027671,2]
[379203918,1755185507036,-565.99,0.00027671,2]
[379203919,1755185507046,-3072.61,0.00027671,2]
[379203920,1755185507055,-1194.33,0.00027671,2]
[379203921,1755185507065,-400.0,0.00027671,2]
[379203922,1755185507074,-400.0,0.00027671,2]
[379203923,1755185507084,-400.0,0.00027671,2]
[379203924,1755185507093,-3262.2,0.00027671,2]
[379203925,1755185507102,-400.0,0.00027671,2]
[379203926,1755185507112,-378.43822868,0.00027671,2]
[379203927,1755185507121,-5059.87,0.00027671,2]
[379203928,1755185507131,-400.0,0.00027671,2]
[379203929,1755185507144,-2726.42,0.00027671,2]
[379203930,1755185507154,-5817.8,0.00027671,2]
[379203931,1755185507163,-433.57,0.00027671,2]
[379203932,1755185507173,-2344.58,0.00027671,2]
[379203933,1755185507187,-432.3,0.00027671,2]
[379203934,1755185507197,-1775.96,0.00027671,2]
[379203935,1755185507207,-406.87050882,0.00027671,2]
[379203936,1755185507217,-470.11,0.00027671,2]
[379203937,1755185507228,-2385.01,0.00027671,2]
[379203938,1755185507239,-1480.24,0.00027671,2]
[379203939,1755185507249,-2338.48,0.00027671,2]
[379203940,1755185507260,-400.0,0.00027671,2]
[379203941,1755185507270,-3748.46,0.00027671,2]
[379203942,1755185507279,-1195.05,0.00027671,2]
[379203943,1755185507288,-767.07,0.00027671,2]
[379203944,1755185507298,-657.61,0.00027671,2]
[379203945,1755185507307,-2254.39,0.00027671,2]
[379203946,1755185507317,-400.0,0.00027671,2]
[379203947,1755185507327,-2438.15,0.00027671,2]
[379203948,1755185507336,-1364.75,0.00027671,2]
[379203949,1755185507346,-1018.49,0.00027671,2]
[379203950,1755185507356,-3894.47,0.00027671,2]
[379203951,1755185507365,-1600.26,0.00027671,2]
[379203952,1755185507375,-989.55,0.00027671,2]
[379203953,1755185507385,-400.0,0.00027671,2]
[379203954,1755185507395,-400.0,0.00027671,2]
[379203955,1755185507405,-400.0,0.00027671,2]
[379203956,1755185507415,-1665.73,0.00027671,2]
[379203957,1755185507424,-2265.34,0.00027671,2]
[379203958,1755185507434,-190.92728133,0.00027671,2]
[379203959,1755185507444,-852.36,0.00027671,2]
[379203960,1755185507454,-1432.07,0.00027671,2]
[379203961,1755185507464,-2865.35,0.00027671,2]
[379203962,1755185507473,-1778.13,0.00027671,2]
[379203963,1755185507483,-400.0,0.00027671,2]
[379203964,1755185507492,-400.0,0.00027671,2]
[379203965,1755185507503,-400.0,0.00027671,2]
[379203966,1755185507512,-829.92,0.00027671,2]
[379203967,1755185507522,-2216.98,0.00027671,2]
[379203968,1755185507532,-400.0,0.00027671,2]
[379203969,1755185507542,-2943.88,0.00027671,2]
[379203970,1755185507556,-2652.2,0.00027671,2]
[379203971,1755185507566,-400.0,0.00027671,2]
[379203972,1755185507576,-421.8,0.00027671,2]
[379203973,1755185507586,-1710.94,0.00027671,2]
[379203974,1755185507596,-400.0,0.00027671,2]
[379203975,1755185507607,-628.72,0.00027671,2]
[379203976,1755185507617,-400.0,0.00027671,2]
[379203977,1755185507627,-743.51,0.00027671,2]
[379203978,1755185507637,-400.0,0.00027671,2]
[379203979,1755185507647,-962.99,0.00027671,2]
[379203980,1755185507657,-954.59,0.00027671,2]
[379203981,1755185507667,-1425.27,0.00027671,2]
[379203982,1755185507680,-3011.68,0.00027671,2]
[379203983,1755185507691,-400.0,0.00027671,2]
[379203984,1755185507700,-210.83314306,0.00027671,2]
[379203985,1755185507711,-1894.09,0.00027671,2]
[379203986,1755185507722,-400.0,0.00027671,2]
[379203987,1755185507732,-507.58327348,0.00027671,2]
[379203988,1755185507743,-1523.66,0.00027671,2]
[379203989,1755185507753,-400.0,0.00027671,2]
[379203990,1755185507763,-3838.43,0.00027671,2]
[379203991,1755185507774,-400.0,0.00027671,2]
[379203992,1755185507784,-3067.81,0.00027671,2]
[379203993,1755185507795,-400.0,0.00027671,2]
[379203994,1755185507804,-400.0,0.00027671,2]
[379203995,1755185507815,-458.69,0.00027671,2]
[379203996,1755185507825,-1611.89,0.00027671,2]
[379203997,1755185507834,-400.0,0.00027671,2]
[379203998,1755185507844,-3451.78,0.00027671,2]
[379203999,1755185507855,-400.0,0.00027671,2]
[379204000,1755185507865,-400.0,0.00027671,2]
[379204001,1755185507875,-400.0,0.00027671,2]
[379204002,1755185507885,-916.92,0.00027671,2]
[379204003,1755185507895,-529.33,0.00027671,2]
[379204004,1755185507906,-400.0,0.00027671,2]
[379204005,1755185507916,-400.0,0.00027671,2]
[379204006,1755185507930,-1591.19,0.00027671,2]
[379204007,1755185507940,-937.0,0.00027671,2]
[379204008,1755185507951,-400.0,0.00027671,2]
[379204009,1755185507961,-1170.6,0.00027671,2]
[379204010,1755185507971,-2521.9,0.00027671,2]
[379204011,1755185507982,-1704.02,0.00027671,2]
[379204012,1755185507992,-400.0,0.00027671,2]
[379204013,1755185508003,-1280.61,0.00027671,2]
[379204014,1755185508013,-3132.83,0.00027671,2]
[379204015,1755185508024,-1221.85,0.00027671,2]
[379204016,1755185508034,-3020.72,0.00027671,2]
[379204017,1755185508045,-4791.07,0.00027671,2]
[379204018,1755185508056,-478.88,0.00027671,2]
[379204019,1755185508066,-400.0,0.00027671,2]
[379204020,1755185508078,-838.03,0.00027671,2]
[379204021,1755185508089,-400.0,0.00027671,2]
[379204022,1755185508101,-1756.68,0.00027671,2]
[379204023,1755185508112,-400.0,0.00027671,2]
[379204024,1755185508122,-400.0,0.00027671,2]
[379204025,1755185508133,-659.36,0.00027671,2]
[379204026,1755185508148,-2704.51,0.00027671,2]
[379204027,1755185508158,-821.42,0.00027671,2]
[379204028,1755185508169,-400.0,0.00027671,2]
[379204029,1755185508185,-1078.9,0.00027671,2]
[379204030,1755185508196,-151.0,0.00027671,7]
[379204031,1755185508207,-680.75,0.00027671,2]
[379204032,1755185508219,-2863.17,0.00027671,2]
[379204033,1755185508229,-151.0,0.00027671,7]
[379204034,1755185508240,-5042.55,0.00027671,2]
[379204035,1755185508251,-625.83,0.00027671,2]
[379204036,1755185508262,-400.0,0.00027671,2]
[379204037,1755185508272,-2434.36,0.00027671,2]
[379204038,1755185508284,-3792.22,0.00027671,2]
[379204039,1755185508295,-3830.02,0.00027671,2]
[379204040,1755185508306,-1675.74,0.00027671,2]
[379204041,1755185508317,-1095.26,0.00027671,2]
[379204042,1755185508328,-878.01,0.00027671,2]
[379204043,1755185508339,-433.92,0.00027671,2]
[379204044,1755185508351,-520.46,0.00027671,2]
[379204045,1755185508361,-400.0,0.00027671,2]
[379204046,1755185508372,-661.26,0.00027671,2]
[379204047,1755185508382,-416.99,0.00027671,2]
[379204048,1755185508393,-400.0,0.00027671,2]
[379204049,1755185508403,-158.06569364,0.00027671,2]
[379204050,1755185508414,-412.14,0.00027671,2]
[379204051,1755185508424,-400.0,0.00027671,2]
[379204052,1755185508442,-400.0,0.00027671,2]
[379204053,1755185508452,-603.07,0.00027671,2]
[379204054,1755185508464,-2508.32,0.00027671,2]
[379204055,1755185508475,-965.75,0.00027671,2]
[379204056,1755185508486,-400.0,0.00027671,2]
[379204057,1755185508498,-400.0,0.00027671,2]
[379204058,1755185508509,-400.0,0.00027671,2]
[379204059,1755185508520,-853.27,0.00027671,2]
[379204060,1755185508531,-2506.86,0.00027671,2]
[379204061,1755185508542,-400.0,0.00027671,2]
[379204062,1755185508553,-400.0,0.00027671,2]
[379204063,1755185508564,-916.52,0.00027671,2]
[379204064,1755185508575,-400.0,0.00027671,2]
[379204065,1755185508587,-464.52,0.00027671,2]
[379204066,1755185508598,-400.0,0.00027671,2]
[379204067,1755185508609,-5855.18,0.00027671,2]
[379204068,1755185508620,-3089.6,0.00027671,2]
[379204069,1755185508631,-5780.27,0.00027671,2]
[379204070,1755185508642,-739.92,0.00027671,2]
[379204071,1755185508653,-4974.48352,0.00027671,7]
[379204072,1755185508664,-416.5,0.00027671,2]
[379204073,1755185508674,-4974.48352,0.00027671,7]
[379204074,1755185508692,-400.0,0.00027671,2]
[379204075,1755185508703,-886.39,0.00027671,2]
[379204076,1755185508714,-400.0,0.00027671,2]
[379204077,1755185508724,-400.0,0.00027671,2]
[379204078,1755185508735,-472.58,0.00027671,2]
[379204079,1755185508745,-400.0,0.00027671,2]
[379204080,1755185508756,-461.97,0.00027671,2]
[379204081,1755185508766,-255.341178,0.00027671,7]
[379204082,1755185508777,-1053.86,0.00027671,2]
[379204083,1755185508788,-255.341178,0.00027671,7]
[379204084,1755185508799,-940.87,0.00027671,2]
[379204085,1755185508809,-4974.48352,0.00027671,7]
[379204086,1755185508821,-400.0,0.00027671,2]
[379204087,1755185508832,-4974.48352,0.00027671,7]
[379204088,1755185508842,-3815.64,0.00027671,2]
[379204089,1755185508853,-911.09,0.00027671,2]
[379204090,1755185508863,-1358.53,0.00027671,2]
[379204091,1755185508877,-400.0,0.00027671,2]
[379204092,1755185508890,-400.0,0.00027671,2]
[379204093,1755185508901,-2658.56,0.00027671,2]
[379204094,1755185508911,-400.0,0.00027671,2]
[379204095,1755185508921,-255.341178,0.00027671,7]
[379204096,1755185508936,-255.341178,0.00027671,7]
[379204097,1755185508948,-400.0,0.00027671,2]
[379204098,1755185508959,-613.92,0.00027671,2]
[379204099,1755185508973,-1374.97,0.00027671,2]
[379204100,1755185508989,-400.0,0.00027671,2]
[379204101,1755185509000,-1629.79,0.00027671,2]
[379204102,1755185509011,-400.0,0.00027671,2]
[379204103,1755185509022,-400.0,0.00027671,2]
[379204104,1755185509033,-3146.02,0.00027671,2]
[379204105,1755185509044,-400.0,0.00027671,2]
[379204106,1755185509055,-2054.56,0.00027671,2]
[379204107,1755185509065,-400.0,0.00027671,2]
[379204108,1755185509076,-590.18,0.00027671,2]
[379204109,1755185509087,-400.0,0.00027671,2]
[379204110,1755185509098,-178.13646913,0.00027671,2]
[379204111,1755185509109,-1456.84,0.00027671,2]
[379204112,1755185509119,-400.0,0.00027671,2]
[379204113,1755185509130,-400.0,0.00027671,2]
[379204114,1755185509143,-400.0,0.00027671,2]
[379204115,1755185509154,-4597.26,0.00027671,2]
[379204116,1755185509165,-400.0,0.00027671,2]
[379204117,1755185509179,-400.0,0.00027671,2]
[379204118,1755185509191,-400.0,0.00027671,2]
[379204119,1755185509203,-400.0,0.00027671,2]
[379204120,1755185509215,-2363.08,0.00027671,2]
[379204121,1755185509226,-465.700249,0.00027671,7]
[379204122,1755185509238,-465.700249,0.00027671,7]
[379204123,1755185509250,-1884.41,0.00027671,2]
[379204124,1755185509261,-1504.81,0.00027671,2]
[379204125,1755185509285,-400.0,0.00027671,2]
[379204126,1755185509304,-400.0,0.00027671,2]
[379204127,1755185509315,-4862.32,0.00027671,2]
[379204128,1755185509327,-400.0,0.00027671,2]
[379204129,1755185509339,-4897.77,0.00027671,2]
[379204130,1755185509350,-465.700249,0.00027671,7]
[379204131,1755185509362,-465.70025,0.00027671,7]
[379204132,1755185509373,-1081.87,0.00027671,2]
[379204133,1755185509384,-894.97,0.00027671,2]
[379204134,1755185509395,-211.878318,0.00027671,7]
[379204135,1755185509405,-211.878318,0.00027671,7]
[379204136,1755185509416,-3471.18,0.00027671,2]
[379204137,1755185509429,-3023.68,0.00027671,2]
[379204138,1755185509440,-400.0,0.00027671,2]
[379204139,1755185509451,-211.878318,0.00027671,7]
[379204140,1755185509462,-211.878318,0.00027671,7]
[379204141,1755185509474,-1807.38,0.00027671,2]
[379204142,1755185509485,-400.0,0.00027671,2]
[379204143,1755185509497,-7970.69,0.00027671,2]
[379204144,1755185509513,-400.0,0.00027671,2]
[379204145,1755185509524,-428.85,0.00027671,2]
[379204146,1755185509534,-477.0,0.00027671,2]
[379204147,1755185509545,-1865.93,0.00027671,2]
[379204148,1755185509555,-2817.71,0.00027671,2]
[379204149,1755185509566,-400.0,0.00027671,2]
[379204150,1755185509577,-1995.04,0.00027671,2]
[379204151,1755185509587,-1528.81,0.00027671,2]
[379204152,1755185509597,-151.0,0.00027671,7]
[379204153,1755185509608,-151.0,0.00027671,7]
[379204154,1755185509618,-1199.56,0.00027671,2]
[379204155,1755185509629,-713.62,0.00027671,2]
[379204156,1755185509639,-887.37,0.00027671,2]
[379204157,1755185509649,-937.29,0.00027671,2]
[379204158,1755185509659,-400.0,0.00027671,2]
[379204159,1755185509670,-3701.03,0.00027671,2]
[379204160,1755185509684,-3074.37,0.00027671,2]
[379204161,1755185509694,-6499.8,0.00027671,2]
[379204162,1755185509705,-971.55,0.00027671,2]
[379204163,1755185509715,-400.0,0.00027671,2]
[379204164,1755185509726,-400.0,0.00027671,2]
[379204165,1755185509737,-2891.02,0.00027671,2]
[379204166,1755185509747,-626.9,0.00027671,2]
[379204167,1755185509757,-3422.12,0.00027671,2]
[379204168,1755185509767,-400.0,0.00027671,2]
[379204169,1755185509778,-1164.81,0.00027671,2]
[379204170,1755185509788,-8982.36,0.00027671,2]
[379204171,1755185509799,-400.0,0.00027671,2]
[379204172,1755185509809,-400.0,0.00027671,2]
[379204173,1755185509819,-4339.27,0.00027671,2]
[379204174,1755185509829,-2768.45,0.00027671,2]
[379204175,1755185509839,-2542.16,0.00027671,2]
[379204176,1755185509850,-1095.04,0.00027671,2]
[379204177,1755185509859,-764.58,0.00027671,2]
[379204178,1755185509870,-5129.23,0.00027671,2]
[379204179,1755185509880,-2240.27,0.00027671,2]
[379204180,1755185509890,-400.0,0.00027671,2]
[379204181,1755185509901,-423.15,0.00027671,2]
[379204182,1755185510305,-893.69,0.00027671,2]
[379204183,1755185510316,-400.0,0.00027671,2]
[379204184,1755185510326,-400.0,0.00027671,2]
[379204185,1755185510336,-538.08,0.00027671,2]
[379204186,1755185510346,-400.0,0.00027671,2]
[379204187,1755185510356,-2919.2,0.00027671,2]
[379204188,1755185510366,-400.0,0.00027671,2]
[379204189,1755185510376,-2792.57,0.00027671,2]
[379204190,1755185510386,-1332.28,0.00027671,2]
[379204191,1755185510396,-2643.38,0.00027671,2]
[379204192,1755185510406,-400.0,0.00027671,2]
[379204193,1755185510416,-400.0,0.00027671,2]
[379204194,1755185510426,-641.09,0.00027671,2]
[379204195,1755185510439,-1748.27,0.00027671,2]
[379204196,1755185510449,-400.0,0.00027671,2]
[379204197,1755185510460,-776.53,0.00027671,2]
[379204198,1755185510471,-400.0,0.00027671,2]
[379204199,1755185510481,-4767.71,0.00027671,2]
[379204200,1755185510491,-1779.83,0.00027671,2]
[379204201,1755185510501,-3318.81,0.00027671,2]
[379204202,1755185510511,-407.76332446,0.00027671,2]
[379204203,1755185510520,-1273.75,0.00027671,2]
[379204204,1755185510530,-2498.66,0.00027671,2]
[379204205,1755185510540,-400.0,0.00027671,2]
[379204206,1755185510550,-400.0,0.00027671,2]
[379204207,1755185510559,-518.7068818,0.00027671,2]
[379204208,1755185510569,-410.38,0.00027671,2]
[379204209,1755185510579,-400.0,0.00027671,2]
[379204210,1755185510589,-400.0,0.00027671,2]
[379204211,1755185510599,-400.0,0.00027671,2]
[379204212,1755185510609,-4631.46,0.00027671,2]
[379204213,1755185510619,-3095.94,0.00027671,2]
[379204214,1755185510628,-427.57,0.00027671,2]
[379204215,1755185510638,-1105.25,0.00027671,2]
[379204216,1755185510648,-2366.19,0.00027671,2]
[379204217,1755185510657,-608.08,0.00027671,2]
[379204218,1755185510667,-614.6,0.00027671,2]
[379204219,1755185510676,-412.07,0.00027671,2]
[379204220,1755185510692,-1669.96,0.00027671,2]